bitfinex/quotes_ETHUSD_20260217
["timestamp","ask_amount","ask_price","bid_price","bid_amount"]
[1771339434489,1.27362575,1962.9,1961.2,0.003]
[1771339434650,0.969,1962.4,1961.2,0.003]
[1771339435050,1.886,1962.6,1961.2,0.003]
[1771339435359,0.967,1962.7,1961.2,0.003]
[1771339435761,0.967,1962.7,1961.2,0.49061942]
[1771339436157,1.27382044,1962.6,1961.2,1.76530815]
[1771339436367,1.27382044,1962.6,1961.5,0.48761942]
[1771339437111,1.27382044,1962.6,1961.2,1.27768873]
[1771339437567,1.27382044,1962.6,1961.2,1.76530815]
[1771339437968,8.273315,1962.5,1961.2,1.76530815]
[1771339438168,1.27395026,1962.4,1961.2,1.76530815]
[1771339439069,1.27395026,1962.4,1961.3,0.0011]
[1771339439510,17.71865092,1962.3,1961.3,0.0011]
[1771339439807,0.09348892,1961.9,1960.2,5.10147602]
[1771339439993,0.09348892,1961.4,1960.5,1.94110164]
[1771339440170,1.27479475,1961.1,1960.5,1e-08]
[1771339440366,1.27453479,1961.5,1960.5,1e-08]
[1771339440801,8.480873,1961.3,1960.5,1e-08]
[1771339440986,3.487,1961.3,1960.5,1e-08]
[1771339441307,0.968,1961.9,1960.5,1e-08]
[1771339441607,2.390829,1961.8,1960.5,0.50000001]
[1771339441770,5.092937,1961.8,1960.5,1e-08]
[1771339441971,5.36249881,1962.0,1960.5,1e-08]
[1771339442271,1.53968813,1962.0,1960.5,0.50000001]
[1771339442472,1.27420998,1962.0,1960.5,0.50000001]
[1771339442811,12.621438,1961.9,1960.5,1e-08]
[1771339442971,1.27420998,1962.0,1960.5,1e-08]
[1771339443167,0.968,1961.8,1960.5,1e-08]
[1771339443371,5.36234381,1962.1,1960.5,0.50000001]
[1771339443372,0.26550386,1962.1,1960.5,0.50000001]
[1771339443595,1.27491678,1962.5,1960.9,0.5]
[1771339443927,0.26545463,1962.4,1961.5,0.5]
[1771339444223,0.001,1962.5,1961.7,0.5]
[1771339444393,0.001,1963.1,1961.9,0.5]
[1771339444795,5.09039914,1964.5,1962.7,6.86996208]
[1771339445009,6.86996208,1963.9,1962.3,0.5]
[1771339445208,0.972,1963.8,1962.3,0.5]
[1771339445411,0.26549319,1964.4,1962.3,0.5]
[1771339445729,0.26549319,1964.4,1962.7,0.5]
[1771339446018,5.09039914,1964.5,1962.9,0.5]
[1771339446194,2.149695,1964.7,1963.1,0.5]
[1771339446397,6.86996208,1964.5,1962.6,0.5]
[1771339446637,8.369014,1964.4,1962.4,5.09528176]
[1771339446794,6.86996208,1964.1,1962.5,0.5]
[1771339446990,6.86996208,1963.5,1962.0,0.5]
[1771339447236,15.129136,1963.3,1961.5,0.5]
[1771339447389,6.86996208,1963.1,1961.5,0.5]
[1771339447733,4.383292,1963.3,1961.5,0.5]
[1771339448094,1.892,1963.2,1961.5,0.5]
[1771339448322,1.27330141,1963.4,1961.8,0.5]
[1771339448509,6.603994,1963.3,1961.8,0.5]
[1771339448708,2.24730141,1963.4,1961.6,1.27446982]
[1771339448709,5.121509,1963.0,1961.6,1.27446982]
[1771339449225,1.27330141,1963.4,1961.7,0.5]
[1771339450042,12.955677,1963.3,1961.6,1.27446982]
[1771339450323,3.22928,1963.1,1961.4,5.59787928]
[1771339450537,1.27343113,1963.2,1961.6,0.5]
[1771339451035,2.750961,1963.1,1961.6,0.5]
[1771339451322,2.750961,1963.1,1961.6,0.0011]
[1771339451712,6.156707,1963.1,1961.6,0.0011]
[1771339451912,1.27443113,1963.2,1961.6,0.0011]
[1771339452220,1.89,1963.1,1961.6,0.0011]
[1771339452424,1.27354027,1963.1,1961.6,0.5011]
[1771339452638,9.643249,1963.0,1961.6,0.5011]
[1771339452796,6.473623,1963.0,1961.6,0.0011]
[1771339452996,6.86996208,1962.5,1961.6,0.0011]
[1771339453201,3.153012,1962.8,1961.6,0.0011]
[1771339453518,1.889,1962.7,1961.6,0.0011]
[1771339453719,9.953267,1962.6,1961.6,0.0011]
[1771339453922,6.86996208,1962.4,1960.6,1.27511986]
[1771339454236,5.448188,1962.2,1960.6,1.27511986]
[1771339454439,0.001,1963.2,1961.4,0.5]
[1771339454599,2.92248,1962.9,1961.4,0.5]
[1771339454939,2.813804,1963.0,1961.4,0.5]
[1771339455231,0.972,1962.9,1961.4,0.5]
[1771339455553,0.918,1962.8,1960.9,8.28796208]
[1771339455841,4.231704,1962.7,1960.9,1.418]
[1771339455999,14.377803,1962.5,1960.9,1.418]
[1771339456191,17.428472,1962.7,1960.9,1.418]
[1771339456403,13.204225,1962.5,1960.9,2.69288082]
[1771339456623,0.1024,1962.4,1960.9,0.918]
[1771339456921,16.786963,1962.3,1960.9,2.19292044]
[1771339457496,0.971,1962.3,1960.9,2.17760662]
[1771339457716,8.896981,1962.2,1960.9,2.17760662]
[1771339457922,15.637472,1963.1,1961.2,0.5]
[1771339458126,1.273496,1963.1,1961.3,0.5]
[1771339458322,6.709131,1963.0,1961.3,0.5]
[1771339458496,6.709131,1963.0,1961.4,1.27459977]
[1771339458497,1.27362575,1962.9,1961.4,1.27459977]
[1771339459127,4.367004,1962.8,1961.4,1.27459977]
[1771339459341,1.27362575,1962.9,1961.4,1.27459977]
[1771339459508,9.810163,1962.8,1961.3,1.7776173]
[1771339459713,7.597831,1962.8,1961.3,1.2776173]
[1771339460037,3.972604,1962.8,1961.3,1.2776173]
[1771339460539,3.16075554,1962.7,1961.3,0.003]
[1771339461036,1.27375554,1962.7,1961.3,0.003]
[1771339461450,13.997742,1962.5,1961.3,0.003]
[1771339461744,1.27375554,1962.7,1961.3,0.003]
[1771339461908,2.241496,1963.1,1961.3,0.503]
[1771339462107,6.290331,1963.0,1961.3,0.503]
[1771339462522,1.27362575,1962.9,1961.5,0.5]
[1771339463237,11.597549,1962.8,1961.5,0.5]
[1771339463548,3.591227,1962.8,1961.4,1.27459977]
[1771339463842,17.189495,1962.7,1961.3,1.2776301]
[1771339464013,17.189495,1962.7,1961.3,0.003]
[1771339464014,7.83596208,1962.6,1961.3,0.003]
[1771339464220,7.423631,1962.5,1961.3,0.003]
[1771339464417,1.27395026,1962.4,1961.3,0.003]
[1771339464729,14.194827,1962.0,1961.6,0.0011]
[1771339465033,6.86996208,1962.1,1961.5,0.0011]
[1771339465034,3.532075,1961.9,1961.5,0.0011]
[1771339465233,27.20751308,1961.7,1960.5,1e-08]
[1771339465444,1.883,1961.8,1960.5,1e-08]
[1771339465445,6.86996208,1961.3,1960.5,1e-08]
[1771339465656,6.86996208,1961.7,1960.5,1.27517693]
[1771339465811,6.221948,1961.6,1960.5,1e-08]
[1771339466141,6.86996208,1961.7,1960.5,1.27517978]
[1771339466142,0.966,1961.7,1960.5,1.27517978]
[1771339466344,0.918,1961.9,1960.5,1.27517978]
[1771339466345,0.966,1961.9,1960.6,0.5]
[1771339466555,0.918,1962.2,1960.8,0.5]
[1771339466556,0.966,1962.2,1960.8,0.5]
[1771339467842,22.60851408,1962.1,1960.5,1.27518133]
[1771339468156,4.762335,1962.0,1960.5,1.27518133]
[1771339468360,6.86996208,1962.1,1960.5,1e-08]
[1771339468361,20.473889,1961.2,1960.5,1e-08]
[1771339468566,20.473889,1961.2,1960.0,0.0358]
[1771339468567,6.86996208,1960.9,1960.0,1.31130915]
[1771339468774,30.0,1961.0,1960.0,0.0358]
[1771339469060,3.753716,1960.6,1959.9,0.1353791]
[1771339469232,3.753716,1960.6,1959.7,0.98182858]
[1771339469664,3.457024,1960.6,1959.7,0.98182858]
[1771339469825,0.967,1960.5,1959.7,0.98182858]
[1771339470192,6.86996208,1960.4,1959.2,1.27602541]
[1771339470348,4.341858,1960.3,1958.7,5.10527369]
[1771339470666,1.27538006,1960.2,1958.7,5.10527369]
[1771339471038,5.10048238,1960.6,1958.8,5.652011]
[1771339471228,1.2751849,1960.5,1958.9,0.5]
[1771339471554,5.10048238,1960.6,1959.3,0.5]
[1771339471555,1.27515263,1960.6,1959.3,0.5]
[1771339472053,2.24215263,1960.6,1959.3,0.5]
[1771339472240,1.27515263,1960.6,1959.3,0.5]
[1771339472442,5.09854051,1961.4,1959.5,0.5]
[1771339472761,6.272286,1961.1,1959.5,0.5]
[1771339472931,6.86996208,1961.2,1959.5,0.5]
[1771339472932,20.963154,1960.9,1959.5,0.5]
[1771339473131,20.963154,1960.9,1959.0,0.5]
[1771339473132,6.86996208,1960.7,1959.0,0.5]
[1771339473331,6.86996208,1960.7,1959.1,1.27609616]
[1771339473536,8.63662,1960.9,1959.1,1.27609616]
[1771339473758,5.972888,1960.6,1959.1,1.27609616]
[1771339473966,20.224555,1960.2,1959.1,1.27609616]
[1771339474138,0.968,1960.1,1959.1,1.27609616]
[1771339474339,0.968,1960.1,1958.9,2.19520283]
[1771339474554,1.2755102,1960.0,1958.9,2.19520283]
[1771339474873,1.2755102,1960.0,1958.9,2.19520989]
[1771339475440,1.2755102,1960.0,1958.6,1.27642193]
[1771339476274,1.2755102,1960.0,1958.1,5.10692156]
[1771339476275,16.375693,1959.7,1958.1,1.27674786]
[1771339476471,0.67548884,1958.4,1955.8,1.66943906]
[1771339476772,0.8005629,1958.5,1956.4,0.50730051]
[1771339476773,6.809359,1958.2,1956.4,0.50730051]
[1771339477073,0.97,1958.1,1956.6,0.5]
[1771339477446,7.351733,1958.0,1956.4,1.28511359]
[1771339477679,0.971,1958.1,1956.5,0.5]
[1771339477839,6.525226,1958.2,1956.5,0.5]
[1771339478038,0.971,1958.1,1956.5,0.5]
[1771339478236,2.07706978,1958.5,1956.8,0.5]
[1771339478539,2.07706978,1958.5,1957.0,0.5]
[1771339478741,2.07706978,1958.5,1957.2,0.5]
[1771339479941,3.04806978,1958.5,1957.2,0.5]
[1771339480138,2.07706978,1958.5,1957.2,0.5]
[1771339480560,2.07706978,1958.5,1957.3,14.18428]
[1771339480766,2.07706978,1958.5,1957.4,1.27720445]
[1771339480961,0.8005629,1958.5,1957.6,0.5]
[1771339481272,5.10375144,1959.4,1957.6,0.5]
[1771339481440,5.10375144,1959.4,1957.5,6.86996208]
[1771339481441,1.27583567,1959.5,1958.0,0.46457238]
[1771339481647,1.27580516,1959.6,1958.2,0.46457238]
[1771339481959,1.27580516,1959.6,1957.6,0.46457238]
[1771339482164,12.196872,1959.5,1957.8,0.46457238]
[1771339482344,3.452617,1959.5,1957.8,0.46457238]
[1771339482546,3.146917,1959.5,1957.8,0.46457238]
[1771339482975,1.27590078,1959.4,1957.9,1.74145066]
[1771339483180,1.27590078,1959.4,1958.2,0.46457238]
[1771339483479,5.10274144,1959.8,1958.3,0.46457238]
[1771339484274,1.27564037,1959.8,1958.5,2.32443]
[1771339484478,1.27544513,1960.1,1958.6,0.45314073]
[1771339484865,5.10174663,1960.2,1958.8,0.45314073]
[1771339485222,5.10174663,1960.2,1958.8,1.72942176]
[1771339485374,1.27524994,1960.4,1958.8,1.72942176]
[1771339485578,1.27524994,1960.4,1958.9,0.45314073]
[1771339485778,1.27479475,1961.1,1959.2,7.32310281]
[1771339485948,1.27479475,1961.1,1959.4,3.19579]
[1771339486277,1.27479475,1961.1,1959.4,0.45314073]
[1771339486480,1.27479475,1961.1,1959.6,0.45314073]
[1771339486664,14.49806,1961.0,1959.6,0.45314073]
[1771339486979,4.81204,1960.7,1959.6,0.45314073]
[1771339487477,4.81204,1960.7,1959.2,2.19598773]
[1771339487776,4.81204,1960.7,1958.6,5.10547994]
[1771339487777,17.196164,1960.2,1958.6,1.27642193]
[1771339488078,0.969,1960.1,1958.6,1.27642193]
[1771339488283,1.89,1960.0,1958.6,1.27642193]
[1771339488654,4.066195,1960.3,1958.6,1.27642193]
[1771339488859,6.88145172,1960.4,1958.5,1.72958035]
[1771339488860,1.2755102,1960.0,1958.5,1.72958035]
[1771339489153,8.313361,1959.9,1958.5,1.27643962]
[1771339489360,0.968,1959.8,1958.4,5.10594842]
[1771339489574,1.2755102,1960.0,1958.5,0.45314073]
[1771339489779,0.968,1959.9,1958.5,0.45314073]
[1771339490654,0.001,1959.9,1958.7,0.45314073]
[1771339490987,0.001,1959.9,1958.9,0.45314073]
[1771339491883,0.001,1959.9,1959.0,7.33459245]
[1771339492053,0.001,1959.9,1959.0,0.45314073]
[1771339492254,1.2749898,1960.8,1959.3,0.47188841]
[1771339492983,0.965,1961.2,1959.7,1.27570546]
[1771339493480,2.91454766,1961.1,1959.7,1.27063806]
[1771339493979,5.09917903,1961.4,1959.7,1.74252647]
[1771339494167,5.09917903,1961.4,1959.8,0.47188841]
[1771339494168,2.91486153,1961.3,1959.8,0.47188841]
[1771339494373,2.91486153,1961.3,1960.0,0.47188841]
[1771339494572,6.88145172,1961.8,1959.7,1.27063806]
[1771339494573,7.27417678,1962.8,1961.2,6.88145172]
[1771339494778,0.49039428,1964.8,1962.3,0.47188841]
[1771339494955,6.88145172,1964.4,1962.4,1.27395026]
[1771339495160,2.875892,1964.3,1962.4,1.27395026]
[1771339495486,2.2552,1964.3,1962.4,1.27395026]
[1771339495792,2.691735,1964.4,1962.5,0.47188841]
[1771339495992,2.789415,1964.5,1962.8,7.35334013]
[1771339496158,2.789415,1964.5,1962.9,1.842]
[1771339496757,3.08104126,1964.6,1962.9,2.31388841]
[1771339497089,2.43484205,1964.4,1963.0,1.27356087]
[1771339497290,1.27252366,1964.6,1963.1,0.919]
[1771339497787,5.12892,1964.5,1962.9,1.27358142]
[1771339498092,0.1024,1964.5,1962.9,1.27358142]
[1771339498293,1.27232938,1964.9,1963.1,0.47188841]
[1771339498598,1.27232938,1964.9,1963.2,1.839]
[1771339498959,5.08829303,1965.3,1963.4,6.88145172]
[1771339499158,5.08829303,1965.3,1963.3,1.27336627]
[1771339499159,2.571546,1965.2,1963.3,1.27336627]
[1771339499357,0.1024,1965.1,1963.3,1.27336627]
[1771339499578,0.1024,1965.0,1963.3,3.11236627]
[1771339500285,0.49039428,1965.2,1963.3,3.11236627]
[1771339500595,5.227901,1965.0,1963.3,3.11236627]
[1771339500778,0.1024,1964.9,1963.3,1.27336627]
[1771339500965,0.59279428,1964.1,1962.1,5.09580105]
[1771339501170,9.305034,1963.6,1961.8,1.27433989]
[1771339501496,2.052388,1963.6,1961.8,1.27433989]
[1771339501655,2.052388,1963.6,1961.8,3.11433989]
[1771339501852,1.27278281,1964.2,1962.0,6.88145172]
[1771339502056,3.930878,1964.0,1962.1,1.84]
[1771339502283,3.930878,1964.0,1962.0,7.35334013]
[1771339502284,4.42127228,1964.0,1962.0,7.35334013]
[1771339502486,0.1024,1963.9,1962.4,6.88145172]
[1771339502655,3.331399,1963.8,1962.2,0.922]
[1771339502857,2.175328,1963.8,1962.2,0.922]
[1771339503386,2.175328,1963.8,1961.7,5.09658019]
[1771339503387,7.30018,1963.4,1961.7,1.27440485]
[1771339503563,7.210386,1963.2,1961.7,1.27440485]
[1771339503764,0.1024,1963.3,1961.7,1.27440485]
[1771339503765,0.1024,1962.9,1961.7,1.27440485]
[1771339503974,3.474229,1963.2,1961.7,1.27440485]
[1771339504153,0.1024,1963.1,1961.7,1.27440485]
[1771339504661,0.1024,1963.1,1961.4,1.27459977]
[1771339504662,7.402418,1963.0,1961.4,1.27459977]
[1771339504857,0.49039428,1962.7,1961.1,1.27479475]
[1771339505272,0.49039428,1962.7,1961.1,0.921]
[1771339505273,1.27388535,1962.5,1961.1,0.921]
[1771339505681,1.27388535,1962.5,1960.9,5.09917903]
[1771339505882,7.119846,1962.4,1960.9,6.01917903]
[1771339506069,5.194086,1962.4,1960.9,5.09356936]
[1771339506263,7.80091,1962.4,1960.9,5.09356936]
[1771339506466,1.27388535,1962.5,1960.5,5.57158752]
[1771339506467,11.706949,1962.2,1960.6,5.10045834]
[1771339506691,2.933911,1962.1,1960.6,5.10045834]
[1771339506894,2.933911,1962.1,1960.2,1.27538006]
[1771339506895,6.88145172,1961.9,1960.2,1.27538006]
[1771339507096,26.16715,1962.4,1960.2,1.74726847]
[1771339507268,0.59279428,1961.9,1960.4,1.27524994]
[1771339507468,0.49039428,1961.9,1960.4,1.27524994]
[1771339507818,0.1024,1962.1,1960.4,1.27524994]
[1771339508110,1.27408011,1962.2,1960.5,1.839]
[1771339508277,1.27408011,1962.2,1960.7,6.88145172]
[1771339508684,1.27408011,1962.2,1960.5,2.30988841]
[1771339508884,6.0416,1962.1,1960.5,1.39188841]
[1771339509190,0.1024,1962.0,1960.4,1.27524994]
[1771339509369,1.27427493,1961.9,1960.1,3.11344513]
[1771339509570,1.27427493,1961.9,1960.1,3.58533354]
[1771339509792,5.09606499,1962.3,1960.7,6.88145172]
[1771339509993,5.040713,1962.2,1960.7,0.92]
[1771339510215,5.040713,1962.2,1960.4,0.47188841]
[1771339510406,3.164842,1962.2,1960.4,0.47188841]
[1771339510613,5.09606499,1962.3,1960.1,1.27544513]
[1771339510614,7.371846,1962.0,1960.1,1.27544513]
[1771339510768,5.09606499,1962.3,1959.5,5.10323924]
[1771339510769,0.49039428,1961.1,1959.5,5.10323924]
[1771339510968,9.197912,1960.6,1959.4,1.27696991]
[1771339511188,3.141569,1960.5,1959.4,1.27696991]
[1771339511373,3.141569,1960.5,1959.4,0.0011]
[1771339511374,1.2751849,1960.5,1959.4,0.0011]
[1771339511575,2.610302,1960.4,1959.4,0.0011]
[1771339511802,0.49039428,1960.0,1959.1,0.0011]
[1771339512001,0.1024,1959.9,1958.5,1.2764871]
[1771339512180,3.85112,1959.8,1958.5,1.2764871]
[1771339512375,3.629725,1959.9,1958.5,1.2764871]
[1771339512599,0.965,1960.1,1958.5,1.2764871]
[1771339512902,2.13798,1960.0,1958.5,1.2764871]
[1771339513203,0.965,1960.1,1958.5,1.2764871]
[1771339513409,1.2755102,1960.0,1958.3,5.57783683]
[1771339513605,1.2755102,1960.0,1958.4,1.841]
[1771339513772,1.2755102,1960.0,1958.4,9.19434013]
[1771339514784,3.930034,1959.8,1958.3,0.92]
[1771339514974,7.910366,1959.9,1958.2,5.10594842]
[1771339515174,3.429801,1959.9,1958.2,5.10594842]
[1771339515506,1.04844037,1959.8,1958.1,1.27668266]
[1771339515683,4.484502,1959.7,1958.1,3.11468266]
[1771339515881,1.04844037,1959.8,1958.4,0.47692981]
[1771339516100,1.04844037,1959.8,1958.4,2.31492981]
[1771339516296,5.10103844,1960.4,1958.7,7.35838153]
[1771339516497,1.27511986,1960.6,1959.1,6.88145172]
[1771339516700,1.27479475,1961.1,1959.5,6.88145172]
[1771339516902,8.562858,1961.5,1959.9,6.88145172]
[1771339517099,8.562858,1961.5,1959.7,0.47692981]
[1771339517100,2.096909,1961.5,1959.7,0.47692981]
[1771339517484,1.27459977,1961.4,1959.9,1.27557528]
[1771339518480,1.27459977,1961.4,1959.9,1.26940149]
[1771339518801,4.038822,1961.3,1959.9,1.26940149]
[1771339519112,4.467902,1961.3,1959.9,1.26940149]
[1771339519616,1.27459977,1961.4,1959.7,2.5793]
[1771339519813,1.27459977,1961.4,1959.9,6.88145172]
[1771339519982,1.27459977,1961.4,1959.8,0.47692981]
[1771339520312,1.27459977,1961.4,1959.9,1.836]
[1771339520513,1.27459977,1961.4,1959.8,0.47692981]
[1771339520716,1.27459977,1961.4,1959.6,1.27577056]
[1771339520883,4.333891,1961.3,1959.7,1.836]
[1771339521083,3.159936,1961.3,1959.7,1.836]
[1771339521284,1.27459977,1961.4,1959.7,2.31292981]
[1771339521610,5.0983991,1961.5,1959.8,1.27564037]
[1771339521790,5.513064,1961.5,1959.8,1.27564037]
[1771339522986,6.98385172,1961.4,1959.8,1.27564037]
[1771339523304,2.833943,1961.5,1959.9,0.47692981]
[1771339523484,0.963,1961.7,1960.1,0.47692981]
[1771339523685,0.963,1961.7,1960.5,1.2751849]
[1771339523686,2.23745223,1961.7,1960.5,1.2751849]
[1771339524092,1.27445223,1961.7,1960.2,5.10141632]
[1771339524825,3.434492,1961.4,1959.7,2.19470546]
[1771339525020,7.36173858,1961.5,1959.7,2.19470546]
[1771339525191,3.305007,1961.5,1959.8,0.47692981]
[1771339525388,2.425909,1961.5,1959.8,0.47692981]
[1771339525603,6.88145172,1960.9,1958.8,0.47692981]
[1771339525936,6.88145172,1960.9,1958.8,5.10505293]
[1771339525937,0.48028686,1960.6,1958.8,5.10505293]
[1771339526228,0.1024,1960.4,1958.8,5.10505293]
[1771339526390,17.43395,1960.3,1958.8,5.10505293]
[1771339526593,0.1024,1960.6,1958.8,5.58198274]
[1771339526798,2.796963,1960.5,1958.8,5.58198274]
[1771339527218,0.1024,1960.6,1958.9,7.35838153]
[1771339527420,2.47658,1960.5,1958.9,0.47692981]
[1771339527732,11.949072,1960.2,1958.8,1.2762916]
[1771339527924,0.1024,1960.1,1958.5,1.2764871]
[1771339528228,2.555002,1960.0,1958.5,1.2764871]
[1771339528797,0.958,1960.1,1958.5,1.75341691]
[1771339529724,1.275315,1960.3,1958.7,1.27635676]
[1771339530301,1.275315,1960.3,1958.8,7.35838153]
[1771339530832,0.00679117,1959.9,1958.7,1.27635676]
[1771339531046,0.00679117,1959.9,1958.4,1.27655228]
[1771339531210,0.00679117,1959.9,1958.5,0.47692981]
[1771339531539,0.00679117,1959.9,1958.3,0.0011]
[1771339531540,6.88145172,1959.2,1958.3,0.0011]
[1771339531749,2.19503103,1959.3,1958.3,0.0011]
[1771339532029,1.27603103,1959.2,1958.0,0.0011]
[1771339532225,2.799904,1959.1,1958.0,0.0011]
[1771339532428,2.799904,1959.1,1958.8,0.0011]
[1771339532619,2.799904,1959.1,1958.6,0.0011]
[1771339532815,2.23403103,1959.2,1958.0,0.0011]
[1771339533016,3.163369,1959.1,1958.0,0.0011]
[1771339533217,6.88145172,1959.0,1958.0,0.0011]
[1771339533417,2.23403103,1959.2,1958.0,0.0011]
[1771339533630,5.135978,1959.1,1958.0,0.0011]
[1771339533796,8.636576,1958.8,1958.0,0.0011]
[1771339534222,4.48988,1958.8,1958.0,0.0011]
[1771339534452,1.27622645,1958.9,1958.0,0.0011]
[1771339534657,2.151959,1958.8,1958.0,0.0011]
[1771339535117,1.27622645,1958.9,1958.0,0.0011]
[1771339535319,6.193854,1958.8,1958.0,0.0011]
[1771339535550,5.788794,1958.8,1958.0,0.0011]
[1771339535734,1.27642193,1958.6,1957.0,1.2774655]
[1771339536354,3.326032,1958.5,1957.0,1.2774655]
[1771339537253,9.271163,1958.3,1956.6,1.27772666]
[1771339537416,6.88145172,1958.0,1956.6,1.27772666]
[1771339537619,0.18685624,1957.9,1956.4,1.28511296]
[1771339537854,6.881501,1957.6,1956.4,1.28511296]
[1771339538057,4.404961,1957.6,1956.4,1.28512405]
[1771339538359,3.637855,1957.6,1956.4,0.00730051]
[1771339538726,1.20925624,1957.5,1956.1,0.003]
[1771339538918,22.05955,1957.2,1956.1,0.003]
[1771339539184,22.05955,1957.2,1956.1,1.28104996]
[1771339539185,4.996644,1957.0,1956.1,1.28104996]
[1771339539463,0.92,1957.6,1956.1,1.28104996]
[1771339539751,12.17634289,1958.0,1956.1,1.28104996]
[1771339539752,1.27681307,1958.0,1956.4,1.75478709]
[1771339540120,5.10631963,1958.6,1956.4,1.75478709]
[1771339540121,1.27655228,1958.4,1956.8,9.39961381]
[1771339540325,1.27655228,1958.4,1956.9,0.47692981]
[1771339540752,20.90224772,1958.3,1956.4,8.63623881]
[1771339540956,0.18685624,1958.0,1956.4,1.75478709]
[1771339541130,0.962,1957.9,1956.4,1.75478709]
[1771339541588,1.27655228,1958.4,1956.7,3.45268981]
[1771339541876,11.98766087,1958.7,1957.0,1.75439531]
[1771339541877,1.27635676,1958.7,1957.0,1.75439531]
[1771339542092,1.27635676,1958.7,1957.1,0.47692981]
[1771339542580,1.2759659,1959.3,1957.5,0.47692981]
[1771339542812,1.2759659,1959.3,1957.8,0.47692981]
[1771339543077,0.1024,1958.9,1957.0,1.2774655]
[1771339543280,30.0,1958.9,1957.0,1.2774655]
[1771339543477,30.0,1958.9,1957.0,1.75439531]
[1771339543779,4.926907,1958.7,1957.0,1.75439531]
[1771339543964,1.27642193,1958.6,1957.0,1.75439531]
[1771339544283,1.27642193,1958.6,1957.2,0.48352803]
[1771339544442,5.57219113,1959.5,1957.4,7.36497975]
[1771339544646,6.37719234,1959.3,1957.4,0.48352803]
[1771339544846,6.028918,1958.7,1957.0,1.2774655]
[1771339545089,0.001,1958.3,1957.2,0.48352803]
[1771339545382,0.001,1958.3,1957.2,7.36497975]
[1771339545596,0.001,1958.3,1957.2,0.48352803]
[1771339546074,0.001,1958.3,1957.2,1.2772862]
[1771339546273,0.001,1958.3,1956.9,1.27753078]
[1771339546864,0.001,1958.3,1957.2,6.88145172]
[1771339547062,0.001,1958.3,1957.1,13.26541203]
[1771339547266,0.001,1958.3,1957.1,0.48352803]
[1771339547567,0.001,1958.3,1957.2,8.30020803]
[1771339547761,0.001,1958.3,1956.9,1.27753078]
[1771339548455,23.473212,1957.5,1956.1,0.003]
[1771339548653,19.9558,1957.5,1956.4,1.28003582]
[1771339548854,2.35005534,1957.6,1956.4,1.28003582]
[1771339549146,2.35005534,1957.6,1956.5,0.0011]
[1771339549147,2.974273,1957.5,1956.5,0.0011]
[1771339549547,2.35005534,1957.6,1956.5,0.0011]
[1771339549983,3.7154462,1957.5,1956.5,0.0011]
[1771339550154,1.2771392,1957.5,1956.5,0.0011]
[1771339550982,1.27712331,1957.6,1956.5,0.0011]
[1771339551152,4.314084,1958.1,1956.5,0.48462803]
[1771339551354,1.27668266,1958.2,1956.5,0.48462803]
[1771339551581,1.27668266,1958.2,1956.6,0.48352803]
[1771339552191,0.001,1958.3,1956.7,1.27766136]
[1771339552366,0.001,1958.3,1956.9,0.49302207]
[1771339552572,0.001,1958.3,1956.7,1.27766136]
[1771339552775,0.001,1958.3,1956.8,0.49302207]
[1771339553392,0.001,1958.3,1956.9,7.39281336]
[1771339553575,0.001,1958.3,1956.7,1.27766136]
[1771339553576,9.511569,1958.2,1956.7,1.27766136]
[1771339553901,2.884991,1958.2,1956.7,1.27766136]
[1771339554125,1.27674786,1958.1,1956.7,1.27766136]
[1771339554402,4.458515,1958.0,1956.7,1.27766136]
[1771339554577,1.27674786,1958.1,1956.7,1.27766136]
[1771339555092,0.18685624,1957.9,1956.4,0.0011]
[1771339555314,4.963677,1957.6,1956.4,0.0011]
[1771339555814,7.752846,1957.5,1956.4,0.0011]
[1771339555964,0.49189212,1957.6,1956.1,0.003]
[1771339555965,0.59429212,1957.2,1956.1,0.003]
[1771339556300,1.2774655,1957.0,1956.1,0.003]
[1771339556465,1.879,1956.9,1956.1,0.003]
[1771339556795,3.068692,1956.8,1956.1,0.003]
[1771339556964,1.879,1956.9,1956.1,0.003]
[1771339557167,2.037971,1956.8,1956.1,0.003]
[1771339557464,2.037971,1956.8,1953.6,6.02916178]
[1771339557465,0.49189212,1956.7,1953.6,6.02916178]
[1771339557665,0.49189212,1956.7,1951.9,3.608827]
[1771339557666,1.24614,1953.7,1951.9,3.608827]
[1771339557944,0.2663,1955.3,1952.6,3.04952]
[1771339557945,4.53330898,1953.4,1952.6,3.04952]
[1771339558200,4.53330898,1953.5,1952.6,8.18009065]
[1771339558407,4.53330898,1953.1,1952.7,6.04672519]
[1771339558608,3.42100091,1954.4,1952.7,6.04672519]
[1771339558609,4.53330898,1953.3,1952.7,6.04672519]
[1771339558915,4.53330898,1953.3,1952.8,6.04672519]
[1771339559197,4.53330898,1953.3,1952.6,1.28034389]
[1771339559198,2.41278,1954.3,1952.6,1.28034389]
[1771339559402,0.18685624,1954.0,1952.7,1.51341621]
[1771339559562,0.18685624,1954.0,1952.5,3.608827]
[1771339559766,1.15185624,1954.1,1952.5,3.608827]
[1771339560070,0.28925624,1954.2,1952.7,1.28027858]
[1771339560071,1.27929587,1954.2,1952.7,1.28027858]
[1771339560300,5.11639805,1954.6,1952.7,1.28027858]
[1771339560519,0.55,1953.9,1952.9,3.058827]
[1771339560714,0.55,1953.9,1952.8,1.50662504]
[1771339560916,0.966,1954.5,1952.7,1.77330065]
[1771339560917,0.55,1953.6,1952.9,1.50662504]
[1771339561225,0.55,1953.1,1952.8,1.50662504]
[1771339561391,0.55,1953.4,1952.9,1.50662504]
[1771339561597,7.43045215,1954.6,1952.6,2.79229]
[1771339561797,2.8887122,1954.5,1952.9,3.058827]
[1771339562096,0.921,1954.4,1952.8,3.058827]
[1771339562404,5.11639805,1954.7,1953.0,6.89979129]
[1771339562601,5.11639805,1954.7,1953.0,2.026]
[1771339562922,5.11639805,1954.7,1953.2,3.058827]
[1771339562923,6.03739805,1954.7,1953.2,3.058827]
[1771339563129,1.27883779,1954.9,1953.2,3.058827]
[1771339563303,9.626551,1954.8,1953.3,0.95662504]
[1771339563502,7.64746912,1954.8,1953.4,0.95662504]